Cogmind - Beta 11.1 @@@ ROGUE MODE // 2022.05.14 @ 07:03:23 Player: leiavoia Result: Destroyed by H-61 Shepherd with Heavy Assault Cannon Performance ------------- Evolutions (4) 2000 Regions Visited (15) 3000 Robots Destroyed (249) 1245 Value Destroyed (8707) 8707 Prototype IDs (29) 580 Alien Tech Used (0) 0 Bonus (2847) 2847 TOTAL SCORE: 18379 Bonus ------- High Alert Combat Kills 940 Follower Combat Kills 1105 Network Hubs Disabled 400 Met Data Miner 300 Met R17 at Cetus 500 Friendly Fire -398 Cogmind --------- Core Integrity 0/850 Matter 242/300 Energy 100/100 System Corruption 10% Temperature Cool (0) Movement Core (50) Location -6/Hub_04(d) Parts ------- > --- POWER (2) -------- (None) > --- PROPULSION (5) --- (None) > --- UTILITY (6) ------ (None) > --- WEAPON (2) ------- (None) > --- INVENTORY (5) ---- High-capacity Matter Pod (200) Improved Medium Armor Plating Long-range Tractor Beam Advanced Variable Charge Gun Phasing Sabre Peak State ------------ > --- POWER ------------ Fission Core Quantum Reactor > --- PROPULSION ------- Improved Treads Centrium Heavy Treads Centrium Heavy Treads > --- UTILITY ---------- Advanced Heat Sink Advanced Heat Sink Large Storage Unit Centrium Medium Armor Plating Centrium Medium Armor Plating Improved Hacking Suite > --- WEAPON ----------- Beamcaster Bore Cannon > --- INVENTORY -------- Quantum Reactor Advanced Heat Sink High-capacity Matter Pod Improved Medium Armor Plating Centrium Medium Armor Plating Improved Hacking Suite Long-range Tractor Beam Advanced Variable Charge Gun Advanced Variable Charge Gun Heavy Machine Gun Advanced KE Penetrator Advanced KE Penetrator Advanced KE Penetrator Bore Cannon Phasing Sabre [Rating: 105] Favorites ----------- Power Enhanced Nuclear Core Engine Reinforced Ion Engine Power Core Enhanced Nuclear Core Reactor Quantum Reactor Propulsion Light Treads Treads Light Treads Leg Aluminum Leg Wheel Armored Huge Wheel Hover Unit Improved Gyrokinetic Inverter Utility Huge Storage Unit Device Improved Terrain Scanner Storage Huge Storage Unit Processor Advanced Targeting Computer Hackware Hacking Suite Protection Light Armor Plating Weapon Gauss Rifle Energy Gun Improved Spread Laser Energy Cannon Beam Cannon Ballistic Gun Gauss Rifle Ballistic Cannon Assault Cannon Launcher Advanced EMP Blaster Slashing Weapon Scythe Build | -11 -10 -10 -9 -9 -8 -7 -7 -7 -7 -6 -6 -6 -6 -6 -6 ------- Run | Scr Mat Min Mat Min Mat Fac Low Low Dat Pro Fac Ext Cet Arc Hub Slots Evolved 8 | . . . 2 . 2 2 . . . . 2 . . . . Power 1 | . . . . . . . . . . . 1 . . . . Propulsion 3 | . . . 1 . 1 1 . . . . . . . . . Utility 4 | . . . 1 . 1 1 . . . . 1 . . . . Weapon . | . . . . . . . . . . . . . . . . Parts Attached 250 | 2 15 4 33 5 41 32 2 4 2 20 14 49 17 5 5 Power 24 | . 4 2 3 1 1 4 . . . . 1 6 2 . . Engine 18 | . 4 2 3 1 1 2 . . . . . 5 . . . Core 5 | . . . . . . 2 . . . . 1 1 1 . . Reactor 1 | . . . . . . . . . . . . . 1 . . Propulsion 60 | . 4 . 11 1 13 6 1 . . 6 2 13 2 1 . Treads 44 | . 4 . 11 1 10 5 . . . . . 10 2 1 . Leg 2 | . . . . . . . . . . . . 2 . . . Wheel 6 | . . . . . 3 1 1 . . 1 . . . . . Hover 8 | . . . . . . . . . . 5 2 1 . . . Flight . | . . . . . . . . . . . . . . . . Utility 85 | 1 4 2 10 2 14 10 1 . . 7 4 19 6 3 2 Device 28 | 1 . . 3 . 4 2 1 . . 3 2 8 4 . . Storage 6 | . 3 1 1 . . . . . . 1 . . . . . Processor 4 | . . . . . 4 . . . . . . . . . . Hackware 5 | . . . . . . 2 . . . . . . . 3 . Protection 42 | . 1 1 6 2 6 6 . . . 3 2 11 2 . 2 Artifact . | . . . . . . . . . . . . . . . . Weapon 81 | 1 3 . 9 1 13 12 . 4 2 7 7 11 7 1 3 Energy Gun 16 | . . . . . 4 1 . . . 2 2 4 3 . . Energy Cannon 7 | . 1 . 3 . 2 1 . . . . . . . . . Ballistic Gun 22 | 1 2 . 3 1 1 5 . 1 1 . 1 3 1 . 2 Ballistic Cannon 12 | . . . 2 . 3 1 . . . 1 1 1 2 . 1 Launcher 13 | . . . 1 . 3 2 . 1 . 2 1 2 1 . . Special Weapon . | . . . . . . . . . . . . . . . . Impact Weapon . | . . . . . . . . . . . . . . . . Slashing Weapon 11 | . . . . . . 2 . 2 1 2 2 1 . 1 . Piercing Weapon . | . . . . . . . . . . . . . . . . Special Melee Weapon . | . . . . . . . . . . . . . . . . Unidentified Prototypes 9 | . . . . . 1 3 . . . . 1 . 3 . 1 Corrupted Parts 1 | . . . . . . . . . . . . . . . 1 System Corruption 1 | . . . . . . . . . . . . . . . 1 Parts Lost 68 | . . 1 2 5 14 2 . 1 . 7 1 23 5 . 7 Power 11 | . . . . 1 1 1 . . . . . 5 2 . 1 Propulsion 18 | . . . . 1 3 . . 1 . 2 . 8 . . 3 Utility 29 | . . 1 2 3 8 1 . . . 3 1 8 1 . 1 Weapon 10 | . . . . . 2 . . . . 2 . 2 2 . 2 Highest Loss Streak 10 | . . 1 1 4 6 2 . 1 . 6 1 10 4 . 7 To Critical Strikes 1 | . . . . . 1 . . . . . . . . . . Average Slot Usage (%) 92 | . 99 99 99 99 86 91 92 88 70 82 85 91 85 85 65 Engine 6 | . 14 14 11 11 9 2 . . . . . 9 7 . . Core 3 | . . . . . . 4 7 7 7 7 12 2 2 6 4 Treads 22 | . 19 28 32 33 14 23 23 19 15 9 . 20 21 20 14 Wheel 3 | . . . . . 10 6 7 7 7 8 . . . . . Hover 1 | . . . . . . . . . . 3 33 7 . . . Device 7 | . 4 . 9 . 7 . 7 7 7 7 12 13 17 12 4 Storage 8 | . 14 14 10 11 9 7 7 7 7 7 6 6 6 6 4 Processor 1 | . . . . . 11 5 . . . . . . . . . Hackware 5 | . . . . . . 14 15 15 15 12 3 . . 9 15 Protection 10 | . 9 13 12 21 7 7 7 7 7 8 2 14 13 10 5 Energy Gun 1 | . . . . . 4 2 . . . 2 5 5 9 6 4 Energy Cannon 4 | . 5 14 10 11 6 1 . . . . . . . . . Ballistic Gun 7 | . 22 14 8 11 4 6 7 7 . 4 . 4 1 . . Ballistic Cannon 1 | . . . 2 . 2 1 . . . 2 1 . 1 4 1 Launcher 1 | . . . . . . 1 7 4 . 3 . 1 . . . Naked Turns 72 | . . . . . . . . . . . . . . . 72 Heaviest Build 117 | 12 33 93 104 103 109 117 107 107 103 110 56 75 87 87 72 Greatest Support 183 | 20 46 46 66 63 86 76 28 28 28 54 55 103 180 183 183 Greatest Overweight (x) 5 | . . 2 1 1 5 4 3 3 3 3 1 2 . . . Average Overweight (x) 1 | . . 1 1 1 2 2 3 3 3 2 . . . . . Largest Inventory Capacity 25 | 8 15 25 25 25 25 25 25 25 25 25 15 15 15 15 15 Average Capacity 21 | 8 9 21 24 25 25 25 25 25 25 24 15 15 15 15 12 Most Carried 25 | 7 14 19 25 25 25 25 25 25 25 25 15 15 15 15 14 Average Carried 20 | 6 8 16 23 23 23 24 25 25 25 22 14 14 14 14 11 Final Capacity 25 | 8 15 25 25 25 25 25 25 25 25 15 15 15 15 15 5 Final Carried 25 | 7 14 19 25 21 25 25 25 25 25 13 14 15 14 14 5 Class Distribution -------------------- 37% | Mutant 32% | Hacker-Mutant 26% | Scavenger-Mutant Dominant Class ---------------- Mutant | -10/Materials Mutant | -10/Mines Mutant | -9/Materials Scavenger-Mutant | -9/Mines Mutant | -8/Materials Hacker-Mutant | -7/Factory Hacker-Mutant | -7/Lower Caves Hacker-Mutant | -7/Lower Caves Hacker-Mutant | -7/Data Miner Hacker-Mutant | -6/Proximity Caves Scavenger-Scout | -6/Factory Scavenger-Mutant | -6/Extension Scavenger-Mutant | -6/Cetus Scavenger-Mutant | -6/Archives Scavenger-Mutant | -6/Hub_04(d) Resources | -11 -10 -10 -9 -9 -8 -7 -7 -7 -7 -6 -6 -6 -6 -6 -6 ----------- Run | Scr Mat Min Mat Min Mat Fac Low Low Dat Pro Fac Ext Cet Arc Hub Matter Collected 6360 | 212 268 330 1092 57 901 671 97 106 . 577 13 1114 527 325 70 Remotely 528 | . . . . . . 241 33 . . 254 . . . . . Salvage Created 9836 | 96 473 404 2338 57 1949 1010 233 82 . 566 5 1194 624 572 233 Parts 526 | 4 41 22 154 6 101 53 8 2 . 25 2 55 23 23 7 Haulers Intercepted 11 | . 1 . 5 . 3 2 . . . . . . . . . Recyclers Shooed 7 | . 2 . . . 2 . . . . . . 3 . . . Parts Field Recycled . | . . . . . . . . . . . . . . . . Retrieved Matter . | . . . . . . . . . . . . . . . . Parts Self-Destructed 19 | . . . . . . . 4 2 . 13 . . . . . Prevented 21 | . . . . . . . 3 . . 18 . . . . . Kills | -11 -10 -10 -9 -9 -8 -7 -7 -7 -7 -6 -6 -6 -6 -6 -6 ------- Run | Scr Mat Min Mat Min Mat Fac Low Low Dat Pro Fac Ext Cet Arc Hub Combat Hostiles Destroyed 195 | . 11 13 40 5 41 18 4 3 . 11 1 28 12 4 4 Guns 83 | . 11 5 17 3 16 6 . . . 1 . 14 8 1 1 Cannons 63 | . . 8 22 2 15 6 . . . 1 . 3 2 3 1 AOE 46 | . . . 1 . 9 6 4 3 . 9 1 11 2 . . Classes Destroyed 21 | 2 6 1 4 1 3 1 . . . 1 1 . . . 1 Worker 9 | . . 1 1 . 4 3 . . . . . . . . . Builder 8 | . 1 . 3 . . 2 . . . . . 2 . . . Tunneler 3 | 1 . . 1 . 1 . . . . . . . . . . Hauler 11 | . 1 . 5 . 3 2 . . . . . . . . . Recycler 8 | 1 1 1 3 . 1 . . . . . . 1 . . . Mechanic 1 | . . . 1 . . . . . . . . . . . . Operator 11 | . 1 . . . . . . . . . . 1 . 9 . Watcher 9 | . 2 . 4 . 2 . . . . . . . 1 . . Swarmer 47 | . 6 9 4 4 7 2 . 3 . 4 . 8 . . . Cutter 1 | . . . . . . . . . . . 1 . . . . Grunt 96 | . 5 4 25 . 25 11 4 . . 4 . 10 5 . 3 Brawler 6 | . . . 3 . 2 . . . . 1 . . . . . Duelist 1 | . . . 1 . . . . . . . . . . . . Protector 1 | . . . . . . . . . . . . . . . 1 Sentry 26 | . . . 7 . 2 2 . . . 1 . 10 . 4 . Demolisher 1 | . . . . 1 . . . . . . . . . . . Specialist 2 | . . . . . 2 . . . . . . . . . . Hunter 5 | . . . . . 2 . . . . . . . 3 . . Programmer 4 | . . . . . . 3 . . . . . 1 . . . Heavy 1 | . . . . . 1 . . . . . . . . . . Behemoth 1 | . . . . . . . . . . 1 . . . . . Cetus Guard 4 | . . . . . . . . . . . . . 4 . . Decomposer 2 | . . . . . . . . . . 2 . . . . . Butcher 1 | . . . . . . . . . . . . 1 . . . Best Kill Streak 10 | 2 7 6 6 4 10 6 4 3 . 4 1 5 6 3 2 Combat Bots Only 8 | . 4 6 3 4 8 5 4 3 . 4 1 4 6 1 2 Max Kills in Single Turn 5 | 1 2 2 2 1 4 2 2 1 . 2 1 5 1 1 1 Gunslinging 1 | . 1 . . . . . . . . . . . . . . Exploded 3 | . . . 1 . 3 2 2 1 . 2 1 3 1 . . Melee . | . . . . . . . . . . . . . . . . Uniques/NPCs Destroyed . | . . . . . . . . . . . . . . . . Combat | -11 -10 -10 -9 -9 -8 -7 -7 -7 -7 -6 -6 -6 -6 -6 -6 -------- Run | Scr Mat Min Mat Min Mat Fac Low Low Dat Pro Fac Ext Cet Arc Hub Damage Taken 17796 | . 412 476 1341 761 3208 1319 48 254 . 1187 441 3670 1780 231 2668 Core 1945 | . 90 56 199 88 363 49 14 16 . 178 19 162 93 11 607 Absorbed by Shields 1034 | . . . 269 36 . . . . . . . 224 263 242 . Reduced by Siege Mode 69 | . . . . . . . . . . . . . 57 12 . Regen/Repaired (Parts) 1084 | . . . 733 . 185 166 . . . . . . . . . Core Remaining (%) 53 | 100 . 41 . 28 34 . . . . 63 . . . . . Volleys Fired 781 | 4 37 30 144 14 125 59 5 10 . 56 4 93 58 125 17 Largest 2 | 2 2 2 2 2 2 2 1 1 . 2 2 2 2 2 2 Hottest 321 | 40 80 80 112 91 128 104 36 36 . 123 150 150 321 132 132 Shots Fired 1320 | 8 74 60 285 24 236 108 5 12 . 80 5 150 109 136 28 Gun 786 | 8 69 30 128 14 90 50 . 7 . 49 2 118 92 115 14 Cannon 467 | . 5 30 154 10 139 52 . . . 11 1 17 13 21 14 Launcher 67 | . . . 3 . 7 6 5 5 . 20 2 15 4 . . Special . | . . . . . . . . . . . . . . . . Kinetic 639 | 8 69 30 142 14 94 75 . 7 . 52 1 70 40 21 16 Thermal 614 | . 5 30 140 10 135 27 . . . 8 2 65 65 115 12 Explosive 31 | . . . 3 . 7 . . . . . 2 15 4 . . Electromagnetic 36 | . . . . . . 6 5 5 . 20 . . . . . Robot Hit Streak 36 | 4 10 11 15 14 25 18 . 1 . 8 3 10 20 36 11 Robot Miss Streak 10 | 1 4 3 4 3 10 6 1 2 . 4 4 7 4 4 5 Penetration Max 1 | . . . . . . 1 . . . . . 1 . . . Secondary Targets 14 | . 7 . . . 2 . . . . . . 2 3 . . Max Gunslinging Chain 1 | . 1 . . . 1 . . . . . . 1 1 . . Shots Hit Robots 884 | 6 44 33 173 17 163 84 . 3 . 50 4 122 83 88 14 Core Hits 514 | 3 23 16 74 6 87 43 8 3 . 32 2 120 45 38 14 Critical Kills 11 | . 2 . . . 1 1 . . . . . 3 1 2 1 Critical Parts Destroyed 15 | . . . . . 1 2 . . . 2 . 3 2 3 2 Critical Strikes 50 | . 2 . . . 4 5 . . . 2 . 9 11 14 3 Burn 17 | . . . . . 2 . . . . . . 1 8 6 . Meltdown 1 | . . . . . 1 . . . . . . . . . . Destroy 30 | . 2 . . . 1 3 . . . 2 . 8 3 8 3 Blast 2 | . . . . . . 2 . . . . . . . . . Melee Attacks 63 | . . . . . . 7 . 11 . . 25 10 . 2 8 Impact . | . . . . . . . . . . . . . . . . Slashing 63 | . . . . . . 7 . 11 . . 25 10 . 2 8 Piercing . | . . . . . . . . . . . . . . . . Sneak Attacks 4 | . . . . . . 3 . . . . 1 . . . . Combat Hostiles . | . . . . . . . . . . . . . . . . Follow-up Attacks . | . . . . . . . . . . . . . . . . Damage Inflicted 22522 | 62 500 564 3305 304 4016 2467 301 198 . 1524 209 3764 2652 1928 728 Guns 10755 | 62 412 188 1269 150 1389 887 . 59 . 582 33 2210 1750 1521 243 Cannons 6484 | . 88 365 1930 154 1904 863 . . . 279 . 215 191 382 113 Explosions 4861 | . . . 41 . 701 510 301 139 . 663 111 1332 711 . 352 Melee 253 | . . . . . . 188 . . . . 65 . . . . Ramming 169 | . . 11 65 . 22 19 . . . . . 7 . 25 20 Kinetic 7942 | 62 412 188 1477 150 1174 1274 . 59 . 758 . 1192 661 382 153 Thermal 9489 | . 88 365 1738 154 2119 617 . . . 138 33 1233 1280 1521 203 Explosive 2855 | . . . . . 701 . . . . . 111 1332 711 . . Electromagnetic 1814 | . . . 25 . . 369 301 139 . 628 . . . . 352 Impact . | . . . . . . . . . . . . . . . . Slashing 253 | . . . . . . 188 . . . . 65 . . . . Piercing . | . . . . . . . . . . . . . . . . Highest Corruption 10 | . . . 1 1 4 2 2 3 3 8 4 4 . . 10 Average Corruption 2 | . . . 1 1 4 1 2 2 3 5 4 3 . . 9 Corruption Purged 4 | . . . . . . . . . . . . 4 . . . Corruption Blocked . | . . . . . . . . . . . . . . . . Effects 122 | . . . 10 2 1 10 21 17 1 21 4 31 . . 4 Message Errors 31 | . . . 2 . . 4 5 5 1 5 . 8 . . 1 Matter Fused 32 | . . . 3 1 . 1 7 5 . 5 1 7 . . 2 Heat Flow Errors 18 | . . . 3 1 . 1 2 2 . 4 1 4 . . . Energy Discharges 17 | . . . 1 . . 3 3 2 . 1 2 5 . . . Parts Rejected 1 | . . . . . . . . . . . . 1 . . . Data Loss (minor) 8 | . . . . . . . 2 1 . 3 . 1 . . 1 Data Loss (major) 2 | . . . . . . . . . . . . 2 . . . Misfires 5 | . . . 1 . . . . 2 . 1 . 1 . . . Alerts 7 | . . . . . . 1 2 . . 2 . 2 . . . Weapon Failures 1 | . . . . . 1 . . . . . . . . . . Overload Shots 2 | . . . . . . . . . . . . . 2 . . Overflow Damage 233 | . . . 37 5 16 36 11 . . 15 66 8 21 . 18 Projectiles 56 | . . . 35 5 16 . . . . . . . . . . Explosions 118 | . . . . . . 14 11 . . 15 31 8 21 . 18 Melee 59 | . . . 2 . . 22 . . . . 35 . . . . Knockbacks 15 | . . . . . 10 2 . . . . . . . 1 2 Impact 2 | . . . . . 1 . . . . . . . . 1 . Kinetic 12 | . . . . . 8 2 . . . . . . . . 2 Secondary 1 | . . . . . 1 . . . . . . . . . . Self-Inflicted Damage 690 | . . . 17 . 62 117 34 86 . 69 52 155 . . 98 Shots 28 | . . . 1 . 4 6 3 4 . 5 1 3 . . 1 Rammed 15 | . . . 4 . 2 3 . . . . . 1 . 2 3 Targets Rammed 18 | . . 1 6 . 2 3 . . . . . 1 . 2 3 Kicked . | . . . . . . . . . . . . . . . . Crushed 3 | . . 1 2 . . . . . . . . . . . . Highest Temperature 500 | . 121 225 478 372 449 238 160 254 . 196 168 500 150 22 345 Average Temperature 102 | . 22 85 119 171 73 88 64 110 . 56 61 150 30 10 147 Received Heat Transfer 4581 | . 126 111 471 . 1107 588 9 . . 177 63 1159 192 44 534 Effects 24 | . . . 10 1 3 . . . . . . 10 . . . Shutdowns 9 | . . . 2 . 1 . . . . . . 6 . . . Energy Bleed 4 | . . . 3 . . . . . . . . 1 . . . Interference 7 | . . . 3 . 2 . . . . . . 2 . . . Matter Decay 2 | . . . 1 1 . . . . . . . . . . . Damage (minor) 2 | . . . 1 . . . . . . . . 1 . . . Siege Activations 4 | . . . . . . . . . . . . . 1 3 . Total Turns 172 | . . . . . . . . . . . . . 64 108 . Longest Duration 83 | . . . . . . . . . . . . . 64 83 . Robots Corrupted 2 | . . . . . . . . . . . . . . . 2 Combat Hostiles 2 | . . . . . . . . . . . . . . . 2 Parts Fried 11 | . . . 2 . . . 1 . . 2 . . . . 6 Impact Corruptions 1 | . . . 1 . . . . . . . . . . . . Robots Melted 1 | . . . . . 1 . . . . . . . . . . Combat Hostiles 1 | . . . . . 1 . . . . . . . . . . Parts Melted 22 | . 1 3 2 . 9 . . . . . . . 2 4 1 Heat Transferred 16764 | . 185 740 3306 259 3848 901 . . . 135 25 1247 2677 3108 333 Parts Sabotaged . | . . . . . . . . . . . . . . . . Parts Stolen . | . . . . . . . . . . . . . . . . Parts Stripped . | . . . . . . . . . . . . . . . . Power Chain Reactions 5 | . . . 1 . . 2 1 . . 1 . . . . . Missiles Intercepted . | . . . . . . . . . . . . . . . . Alert | -11 -10 -10 -9 -9 -8 -7 -7 -7 -7 -6 -6 -6 -6 -6 -6 ------- Run | Scr Mat Min Mat Min Mat Fac Low Low Dat Pro Fac Ext Cet Arc Hub Peak Influence 946 | 10 240 171 786 386 946 786 . . . . 177 521 444 375 539 Initial 429 | . 6 14 . 306 64 429 . . . . . 81 184 97 60 Average 318 | 5 91 55 348 374 541 557 . . . . 64 325 239 234 199 Maximum Alert Level 3 | . 1 . 3 1 3 3 . . . . . 2 2 1 2 Low Security (%) 38 | 100 84 100 39 3 15 . . . . . 100 3 26 42 60 Level 1 25 | . 15 . 16 96 10 . . . . . . 80 68 57 26 Level 2 28 | . . . 31 . 48 86 . . . . . 15 4 . 13 Level 3 7 | . . . 12 . 25 13 . . . . . . . . . Level 4 . | . . . . . . . . . . . . . . . . Level 5 . | . . . . . . . . . . . . . . . . High Security . | . . . . . . . . . . . . . . . . Max Security . | . . . . . . . . . . . . . . . . Squads Dispatched 45 | . 1 1 10 . 12 11 . . . . 3 1 1 . 5 Investigation 20 | . . 1 6 . 5 2 . . . . 1 1 1 . 3 Extermination 3 | . . . . . . 3 . . . . . . . . . Reinforcement 19 | . 1 . 4 . 5 5 . . . . 2 . . . 2 Assault 2 | . . . . . 1 1 . . . . . . . . . Garrison 1 | . . . . . 1 . . . . . . . . . . Intercept . | . . . . . . . . . . . . . . . . Searches Triggered . | . . . . . . . . . . . . . . . . Data Miner Redirects 3 | . . . . . . . . . . . . . . . 3 Construction Impeded 2 | . . . . . . 1 . . . . . . . . 1 Haulers Reinforced 3 | . . . . . . 2 . . . . 1 . . . . Active Scanning Responses 2 | . . . . . . . . . . . 1 1 . . . Cargo Convoy Interrupts . | . . . . . . . . . . . . . . . . Stealth | -11 -10 -10 -9 -9 -8 -7 -7 -7 -7 -6 -6 -6 -6 -6 -6 --------- Run | Scr Mat Min Mat Min Mat Fac Low Low Dat Pro Fac Ext Cet Arc Hub Distress Signals 15 | . . . 2 . 6 1 . . . . 1 1 2 1 1 Communications Jammed . | . . . . . . . . . . . . . . . . Distress Signals . | . . . . . . . . . . . . . . . . Times Spotted 355 | . 17 13 59 15 61 29 5 3 . 13 13 42 19 35 31 Peak Tracking Total 17 | . 6 3 6 13 8 7 4 3 . 4 8 5 5 1 17 Tactical Retreats 16 | . . . 1 1 3 2 . 1 . 1 2 2 . . 3 Traps | -11 -10 -10 -9 -9 -8 -7 -7 -7 -7 -6 -6 -6 -6 -6 -6 ------- Run | Scr Mat Min Mat Min Mat Fac Low Low Dat Pro Fac Ext Cet Arc Hub Traps Triggered 7 | . 1 . 2 . . . . . . . 1 1 . . 2 Indirectly 3 | . . . 2 . . . . . . . . . . . 1 Trap Hack Attempts . | . . . . . . . . . . . . . . . . Triggered . | . . . . . . . . . . . . . . . . Disarmed . | . . . . . . . . . . . . . . . . Reprogrammed . | . . . . . . . . . . . . . . . . Reused 1 | . . . . . 1 . . . . . . . . . . Traps Extracted . | . . . . . . . . . . . . . . . . Installed 3 | . . . . . 3 . . . . . . . . . . Triggered 2 | . . . . . 1 . . . . . . . . . 1 Most Traps Carried 3 | . . 3 3 3 3 . . . . . . . . . . Machines | -11 -10 -10 -9 -9 -8 -7 -7 -7 -7 -6 -6 -6 -6 -6 -6 ---------- Run | Scr Mat Min Mat Min Mat Fac Low Low Dat Pro Fac Ext Cet Arc Hub Machines Disabled 30 | . . 1 5 . 2 4 . . . . 1 3 1 7 6 Max in Single Turn 6 | . . 1 2 . 1 1 . . . . 1 2 1 1 6 Network Hub 2 | . . . . . . . . . . . . . . . 2 Energy Cycler 2 | . . . . . . . . . . . . 2 . . . Machines Sabotaged 1 | . . . . . . . . . . . . . . . 1 Garrisons Compromised . | . . . . . . . . . . . . . . . . Overloaded Fab Kills . | . . . . . . . . . . . . . . . . Hacking | -11 -10 -10 -9 -9 -8 -7 -7 -7 -7 -6 -6 -6 -6 -6 -6 --------- Run | Scr Mat Min Mat Min Mat Fac Low Low Dat Pro Fac Ext Cet Arc Hub Machines Accessed 44 | . 6 1 11 . 5 10 2 . 4 . 2 . 1 . 2 Terminals 22 | . 5 1 7 . 2 2 . . . . 2 . 1 . 2 Fabricators 4 | . . . . . . 4 . . . . . . . . . Repair Stations 5 | . . . 2 . 1 2 . . . . . . . . . Recycling Units 7 | . 1 . 2 . 2 2 . . . . . . . . . Scanalyzers . | . . . . . . . . . . . . . . . . Garrison Access . | . . . . . . . . . . . . . . . . Total Hacks 168 | . 14 5 47 . 17 32 7 . 30 . 6 . 3 . 7 Successful 104 | . 5 2 28 . 10 16 7 . 30 . 2 . . . 4 Failed 63 | . 8 3 19 . 7 16 . . . . 4 . 3 . 3 Catastrophic 6 | . . 1 2 . 1 1 . . . . . . . . 1 Database Lockouts 1 | . 1 . . . . . . . . . . . . . . Manual 63 | . 4 5 24 . 7 16 . . . . 2 . . . 5 Terminals 74 | . 12 5 28 . 8 5 . . . . 6 . 3 . 7 Fabricators 19 | . . . . . . 19 . . . . . . . . . Repair Stations 22 | . . . 14 . 5 3 . . . . . . . . . Recycling Units 16 | . 2 . 5 . 4 5 . . . . . . . . . Scanalyzers . | . . . . . . . . . . . . . . . . Garrison Access . | . . . . . . . . . . . . . . . . Terminal Hacks 65 | . 4 2 12 . 2 3 7 . 30 . 2 . . . 3 Record 17 | . . . . . . . 6 . 11 . . . . . . Part Schematic 10 | . . . . . . . . . 10 . . . . . . Robot Schematic 6 | . . . . . . . . . 6 . . . . . . Robot Analysis 15 | . 1 2 8 . 1 1 . . . . 1 . . . 1 Prototype ID Bank 9 | . 2 . 3 . . . . . 3 . 1 . . . . Open Door 1 | . . . . . . . 1 . . . . . . . . Branch Access Points 3 | . . . 1 . 1 1 . . . . . . . . . Emergency Access Points 1 | . . . . . . . . . . . . . . . 1 Terminal Index 1 | . . . . . . . . . . . . . . . 1 Locate Traps 1 | . 1 . . . . . . . . . . . . . . Security Status 1 | . . . . . . 1 . . . . . . . . . Fabricator Hacks 3 | . . . . . . 3 . . . . . . . . . Network Status 1 | . . . . . . 1 . . . . . . . . . Build 2 | . . . . . . 2 . . . . . . . . . Repair Station Hacks 18 | . . . 12 . 4 2 . . . . . . . . . Scan Component 9 | . . . 6 . 2 1 . . . . . . . . . Repair 9 | . . . 6 . 2 1 . . . . . . . . . Recycling Unit Hacks 7 | . 1 . 2 . 2 2 . . . . . . . . . Retrieve Components 7 | . 1 . 2 . 2 2 . . . . . . . . . Scanalyzer . | . . . . . . . . . . . . . . . . Garrison Access Hacks . | . . . . . . . . . . . . . . . . Unauthorized Hacks 11 | . . . 2 . 2 6 . . . . . . . . 1 Terminals 1 | . . . . . . . . . . . . . . . 1 Sabotage 1 | . . . . . . . . . . . . . . . 1 Fabricators 4 | . . . . . . 4 . . . . . . . . . Prioritize 1 | . . . . . . 1 . . . . . . . . . Fabnet 3 | . . . . . . 3 . . . . . . . . . Repair Stations . | . . . . . . . . . . . . . . . . Recycling Units 6 | . . . 2 . 2 2 . . . . . . . . . Tunnel 6 | . . . 2 . 2 2 . . . . . . . . . Scanalyzers . | . . . . . . . . . . . . . . . . Garrison Access . | . . . . . . . . . . . . . . . . Data Cores Recovered 1 | . 1 . . . . . . . . . . . . . . Used 1 | . 1 . . . . . . . . . . . . . . Hacking Detections 31 | . 4 1 10 . 4 8 . . . . 2 . 1 . 1 Full Trace Events 10 | . . 1 4 . 3 . . . . . . . 1 . 1 Feedback Events . | . . . . . . . . . . . . . . . . Feedback Blocked . | . . . . . . . . . . . . . . . . Robot Schematics Acquired 6 | . . . . . . . . . 6 . . . . . . Robots Built 4 | . . . . . . 4 . . . . . . . . . Authchips . | . . . . . . . . . . . . . . . . Time 134 | . . . . . . 134 . . . . . . . . . Total Robot Build Rating 16 | . . . . . . 16 . . . . . . . . . Part Schematics Acquired 10 | . . . . . . . . . 10 . . . . . . Parts Built 2 | . . . . . . 2 . . . . . . . . . Authchips . | . . . . . . . . . . . . . . . . Time 117 | . . . . . . 117 . . . . . . . . . Total Part Build Rating 14 | . . . . . . 14 . . . . . . . . . Parts Repaired 9 | . . . 6 . 2 1 . . . . . . . . . Time 294 | . . . 174 . 76 44 . . . . . . . . . Parts Recycled . | . . . . . . . . . . . . . . . . Recycled Matter . | . . . . . . . . . . . . . . . . Retrieved Matter . | . . . . . . . . . . . . . . . . Retrieved Components 57 | . 10 . 19 . 12 16 . . . . . . . . . Parts Scanalyzed . | . . . . . . . . . . . . . . . . Part Schematics Acquired . | . . . . . . . . . . . . . . . . Parts Damaged . | . . . . . . . . . . . . . . . . Bothacking | -11 -10 -10 -9 -9 -8 -7 -7 -7 -7 -6 -6 -6 -6 -6 -6 ------------ Run | Scr Mat Min Mat Min Mat Fac Low Low Dat Pro Fac Ext Cet Arc Hub Used RIF Installer . | . . . . . . . . . . . . . . . . Robots Hacked 8 | . . . . . . . . . . . 1 3 1 1 2 Non-combat . | . . . . . . . . . . . . . . . . Combat 8 | . . . . . . . . . . . 1 3 1 1 2 Robot Hacks Applied . | . . . . . . . . . . . . . . . . Relay Couplers Released . | . . . . . . . . . . . . . . . . Fabnet Peak Effective % 9 | . . . . . . . . . . 9 9 9 9 9 9 Autooverrided 8 | . . . . . . . . . . . 1 3 1 1 2 Robots Rewired 25 | . . . . . . . . . . . . 25 . . . Allies Hacked . | . . . . . . . . . . . . . . . . Hacks Repelled 1 | . . . . . . 1 . . . . . . . . . Allies | -11 -10 -10 -9 -9 -8 -7 -7 -7 -7 -6 -6 -6 -6 -6 -6 -------- Run | Scr Mat Min Mat Min Mat Fac Low Low Dat Pro Fac Ext Cet Arc Hub Total Allies 38 | . . . . . . 4 . . . 1 1 28 1 1 2 Largest Group 7 | . . . . . . 4 . . . 1 1 7 7 1 1 Highest-Rated Group 222 | . . . . . . 48 . . . 96 90 222 222 49 29 Highest-Rated Ally 96 | . . . . . . 12 . . . 96 90 39 39 49 29 Total Orders . | . . . . . . . . . . . . . . . . Ally Attacks 228 | . . . . . . 54 . . . 26 5 108 28 . 7 Total Damage 4177 | . . . . . . 539 . . . 906 233 1912 491 . 96 Kills 28 | . . . . . . 7 . . . 2 1 13 5 . . Allies Corrupted . | . . . . . . . . . . . . . . . . Allies Melted 1 | . . . . . . . . . . . . 1 . . . Intel | -11 -10 -10 -9 -9 -8 -7 -7 -7 -7 -6 -6 -6 -6 -6 -6 ------- Run | Scr Mat Min Mat Min Mat Fac Low Low Dat Pro Fac Ext Cet Arc Hub Robot Analysis Total 15 | . 1 2 8 . 1 1 . . . . 1 . . . 1 Derelict Logs Recovered 5 | . . 2 . . . . 1 1 . 1 . . . . . Drone Launches . | . . . . . . . . . . . . . . . . Drone Recoveries . | . . . . . . . . . . . . . . . . Exploration | -11 -10 -10 -9 -9 -8 -7 -7 -7 -7 -6 -6 -6 -6 -6 -6 ------------- Run | Scr Mat Min Mat Min Mat Fac Low Low Dat Pro Fac Ext Cet Arc Hub Turns Passed 17826 | 21 1033 1662 3668 414 1305 2026 1627 1377 132 973 457 1762 507 547 315 Spaces Moved 8575 | 5 606 645 1215 155 521 1075 1092 912 89 637 344 711 175 145 248 Core 144 | . . . . . . . . . . . . . . . 144 Treads 3322 | . 407 645 1215 155 20 5 . . . . . 451 175 145 104 Legs 204 | 5 199 . . . . . . . . . . . . . . Wheels 4181 | . . . . . 501 1070 1092 912 89 517 . . . . . Hover 724 | . . . . . . . . . . 120 344 260 . . . Flight . | . . . . . . . . . . . . . . . . Fastest Speed 50 | 120 120 160 240 240 115 145 145 145 145 52 52 52 160 160 50 Average Speed 162 | 120 146 241 240 240 147 145 145 145 145 127 55 148 160 160 96 Slowest Speed 560 | 120 160 320 240 240 560 250 145 145 145 145 104 320 160 160 160 Overloaded Moves . | . . . . . . . . . . . . . . . . Propulsion Burnouts . | . . . . . . . . . . . . . . . . Robots Hopped . | . . . . . . . . . . . . . . . . Cave-ins Triggered . | . . . . . . . . . . . . . . . . Exploration Rate (%) 62 | 3 97 99 94 39 53 23 98 92 68 70 9 64 68 88 28 Regions Visited 15 Branch Regions 10 Pre-discovered Areas 9 | . . . 2 . 2 2 2 . 1 . . . . . . Known Exits Taken 5 | . . . 1 1 . 1 . . . 1 1 . . . . Unknown Exits Taken 10 | 1 1 1 . . 1 . 1 1 1 . . 1 1 1 . Scrap Searched 13 | . . 1 . . . . 9 2 . 1 . . . . . Spaces Dug 57 | . . . . . . 4 . 11 . . 24 10 . . 8 Terrain Destroyed 629 | . . . 25 . 52 17 3 11 . 6 60 223 66 6 160 Melee 56 | . . . . . . 4 . 11 . . 23 10 . . 8 Projectile 50 | . . . . . 11 1 . . . . 1 17 10 6 4 AOE 523 | . . . 25 . 41 12 3 . . 6 36 196 56 . 148 Terrain Rammed . | . . . . . . . . . . . . . . . . Walls Destroyed . | . . . . . . . . . . . . . . . . Machines Disabled . | . . . . . . . . . . . . . . . . Actions | -11 -10 -10 -9 -9 -8 -7 -7 -7 -7 -6 -6 -6 -6 -6 -6 --------- Run | Scr Mat Min Mat Min Mat Fac Low Low Dat Pro Fac Ext Cet Arc Hub Total 11083 | 11 689 689 1688 173 825 1425 1131 939 92 715 564 1242 297 322 281 Wait 848 | . 3 4 233 . 74 195 30 2 . . 168 86 23 30 . Move 8560 | 4 605 644 1214 154 520 1074 1091 911 88 636 343 710 174 144 248 Hop . | . . . . . . . . . . . . . . . . Pick Up 134 | 1 12 5 31 . 29 21 1 . . . 5 15 9 5 . Fast Attach 65 | 1 1 . 8 . 13 8 1 . 2 . . 23 6 2 . Attach 66 | . 2 1 5 4 16 4 . . . 12 4 12 3 . 3 Detach 15 | . . . 1 . 5 3 . . . 1 2 . 2 1 . Swap 119 | 1 12 3 20 1 12 20 1 4 . 8 10 14 8 3 2 Drop 147 | . 17 1 26 . 26 29 2 1 2 2 3 16 14 8 . Fire 781 | 4 37 30 144 14 125 59 5 10 . 56 4 93 58 125 17 Melee 63 | . . . . . . 7 . 11 . . 25 10 . 2 8 Ram 2 | . . . . . 2 . . . . . . . . . . Kick . | . . . . . . . . . . . . . . . . Crush 16 | . . 1 6 . . 3 . . . . . 1 . 2 3 Escape Stasis . | . . . . . . . . . . . . . . . . Rewire 264 | . . . . . . 2 . . . . . 262 . . . Trap 3 | . . . . . 3 . . . . . . . . . . Miscellaneous . | . . . . . . . . . . . . . . . . Route ------- -11/Scrapyard -10/Materials (discovered 4 exits: *Mat x3 / *Min) -10/Mines (discovered 2 exits: *Mat x2) -9/Materials (discovered 4 exits: *Mat x3 / *Min) -9/Mines -8/Materials (discovered 2 exits: *Fac x2) -7/Factory (discovered 4 exits: *Fac / Sto / *Low x2) -7/Lower Caves (discovered 2 exits: [*Low] / [*Zio]) -7/Lower Caves (discovered 2 exits: *Fac / *Dat) -7/Data Miner -6/Proximity Caves -6/Factory (discovered 2 exits: [*Low] / *Ext) -6/Extension (discovered 2 exits: [*Fac] / *Cet) -6/Cetus (discovered 2 exits: [*Fac] / *Arc) -6/Archives (discovered 3 exits: [*Fac] / *Hub x2) -6/Hub_04(d) History --------- Turn | Location | Event 14 | -11/Scrapyard | Discovered new exit (range 3) 22 | -11/Scrapyard | Entered Materials 81 | -10/Materials | Central database locked down 301 | -10/Materials | Build established: Mutant 397 | -10/Materials | Discovered new exit (range 15) 626 | -10/Materials | Discovered new exit (range 13) 761 | -10/Materials | Discovered new exit (range 16) 913 | -10/Materials | Discovered new exit (range 16) 1055 | -10/Materials | Entered Mines 1155 | -10/Mines | Discovered new exit (range 12) 1377 | -10/Mines | Learned location of 1 exit from Materials 1425 | -10/Mines | Learned Materials terminal intel 1498 | -10/Mines | Discovered new exit (range 6) 1574 | -10/Mines | Core integrity fell below 50% 2058 | -10/Mines | Found a hidden stash of uninstalled traps 2717 | -10/Mines | Entered Materials 2717 | -9/Materials | Evolved 2 slots: Propulsion x1, Utility x1 2718 | -9/Materials | Identified exit to Materials 2719 | -9/Materials | Loaded intel: 12 terminal locations 2814 | -9/Materials | Repaired Imp. Treads 2842 | -9/Materials | Repaired Huge Storage Unit 2950 | -9/Materials | Repaired Assault Rifle 2977 | -9/Materials | Repaired Assault Rifle 3010 | -9/Materials | Repaired Imp. Treads 3242 | -9/Materials | Identified exit to Mines 4440 | -9/Materials | Discovered exit to Materials (range 16) 5280 | -9/Materials | Discovered exit to Materials (range 9) 5339 | -9/Materials | Repaired Imp. Treads 5841 | -9/Materials | Build established: Scavenger-Mutant 6385 | -9/Materials | Entered Mines 6387 | -9/Mines | Core integrity fell below 50% 6408 | -9/Mines | Met a Derelict bent on vengeance 6489 | -9/Mines | Deemed a non-threat by the Exiles lab entrance 6768 | -9/Mines | Assembled infested the area 6773 | -9/Mines | Discovered exit to Materials (range 8) 6799 | -9/Mines | Entered Materials 6799 | -8/Materials | Evolved 2 slots: Propulsion x1, Utility x1 6814 | -8/Materials | Lost 4 parts (1p1n2u) 7054 | -8/Materials | Discovered new exit (range 13) 7073 | -8/Materials | Build established: Mutant 7193 | -8/Materials | Lost 6 parts (3n1u2w) 7200 | -8/Materials | Destroyed 8 combat bots 7271 | -8/Materials | Found Prototype Device 7590 | -8/Materials | Build established: Scavenger-Mutant 7609 | -8/Materials | Core integrity fell below 50% 7906 | -8/Materials | Discovered new exit (range 14) 7985 | -8/Materials | Repaired Arm. Treads 7999 | -8/Materials | First assault squad dispatched 8024 | -8/Materials | Repaired Arm. Treads 8030 | -8/Materials | Garrison activated, responded to threat 8088 | -8/Materials | Lost 4 parts (4u) 8104 | -8/Materials | Entered Factory 8104 | -7/Factory | Evolved 2 slots: Propulsion x1, Utility x1 8235 | -7/Factory | Repaired Arm. Huge Wheel 8412 | -7/Factory | Build established: Hacker-Mutant 8500 | -7/Factory | Fabricated Imp. Gyrokinetic Inverter (x2) 8632 | -7/Factory | Identified exit to Storage 8632 | -7/Factory | Identified exit to Lower Caves 8786 | -7/Factory | Fabricated S-27 Virus? 9119 | -7/Factory | Discovered new exit (range 15) 9246 | -7/Factory | P-60 Hacker assimilated allied Virus 4b 10104 | -7/Factory | First assault squad dispatched 10130 | -7/Factory | Entered Lower Caves 10592 | -7/Lower Caves | A Derelict revealed a hidden shortcut to a safe place 10890 | -7/Lower Caves | Discovered new exit (range 11) 10961 | -7/Lower Caves | Learned Factory terminal intel 10961 | -7/Lower Caves | Learned Extension terminal intel 10961 | -7/Lower Caves | Learned Research garrison access intel 10961 | -7/Lower Caves | Learned Extension garrison access intel 11757 | -7/Lower Caves | Entered another Lower Caves area 11779 | -7/Lower Caves | Discovered new exit (range 5) 11808 | -7/Lower Caves | Learned location of 1 exit from Proximity Caves 11861 | -7/Lower Caves | Encountered a Warlord checkpoint 12863 | -7/Lower Caves | Discovered new exit (range 5) 13134 | -7/Lower Caves | Entered Data Miner 13134 | -7/Data Miner | Discovered new exit (range 6) 13163 | -7/Data Miner | Met Data Miner 13189 | -7/Data Miner | Learned location of Section 7 (-3) 13189 | -7/Data Miner | Acquired the access code to Warlord's prototype stash 13212 | -7/Data Miner | Received God Mode back door access code from Data Miner 13266 | -7/Data Miner | Entered Proximity Caves 13267 | -6/Proximity Caves | Identified exit to Factory 13350 | -6/Proximity Caves | Escorted by Enhanced Grunt 13778 | -6/Proximity Caves | Attracted the attention of an 0b10 checkpoint 13881 | -6/Proximity Caves | Spotted B-75 Beast 13946 | -6/Proximity Caves | Destroyed B-75 Beast 13971 | -6/Proximity Caves | Lost 6 parts (2n2u2w) 13992 | -6/Proximity Caves | Learned Factory machine intel 14222 | -6/Proximity Caves | Build established: Mutant 14239 | -6/Proximity Caves | Entered Factory 14239 | -6/Factory | Evolved 2 slots: Power x1, Utility x1 14240 | -6/Factory | Loaded intel: 242 machine locations 14241 | -6/Factory | Loaded intel: 28 terminal locations 14241 | -6/Factory | Identified Active Sensor Suite 14255 | -6/Factory | Discovered new exit (range 4) 14682 | -6/Factory | Discovered new exit (range 14) 14695 | -6/Factory | Identified exit to Extension 14696 | -6/Factory | Entered Extension 14697 | -6/Extension | Loaded intel: 10 terminal locations 14759 | -6/Extension | Energy Cycler disabled 14759 | -6/Extension | Rescued a captive Derelict 14760 | -6/Extension | Local machine network offline 14775 | -6/Extension | Rescued a captive Derelict 14796 | -6/Extension | Disrupted transfer network 14902 | -6/Extension | Lost 3 parts (1p1n1u) 15136 | -6/Extension | Lost 10 parts (2p3n4u1w) 15448 | -6/Extension | Build established: Scavenger-Mutant 15516 | -6/Extension | Lost 4 parts (1p2n1u) 15685 | -6/Extension | Lost 4 parts (2n2u) 16429 | -6/Extension | Discovered new exit (range 10) 16431 | -6/Extension | Discovered new exit (range 6) 16458 | -6/Extension | Entered Cetus 16458 | -6/Cetus | Accompanied by 7 allies 16483 | -6/Cetus | Spotted Cetus Guard 16483 | -6/Cetus | Spotted Cetus Guard 16487 | -6/Cetus | Spotted Cetus Guard 16488 | -6/Cetus | Spotted Cetus Guard 16500 | -6/Cetus | Allies destroyed Cetus Guard 16504 | -6/Cetus | Allies destroyed Cetus Guard 16508 | -6/Cetus | Allies destroyed Cetus Guard 16513 | -6/Cetus | Allies destroyed Cetus Guard 16686 | -6/Cetus | Discovered new exit (range 15) 16714 | -6/Cetus | Spotted Cetus Guard 16715 | -6/Cetus | Spotted Cetus Guard 16721 | -6/Cetus | Spotted Cetus Guard 16729 | -6/Cetus | Destroyed Cetus Guard 16730 | -6/Cetus | Spotted Cetus Guard 16756 | -6/Cetus | Destroyed Cetus Guard 16801 | -6/Cetus | Destroyed Cetus Guard 16819 | -6/Cetus | Destroyed Cetus Guard 16829 | -6/Cetus | Lost 4 parts (2p1u1w) 16867 | -6/Cetus | Discovered new exit (range 16) 16878 | -6/Cetus | Met Revision 17 16965 | -6/Cetus | Entered Archives 17142 | -6/Archives | Unable to access archive contents 17285 | -6/Archives | Discovered new exit (range 15) 17408 | -6/Archives | Discovered new exit (range 16) 17474 | -6/Archives | Discovered new exit (range 16) 17512 | -6/Archives | Entered Hub_04(d) 17563 | -6/Hub_04(d) | Incoming investigation squad redirected 17647 | -6/Hub_04(d) | Network Hub disabled 17665 | -6/Hub_04(d) | Incoming investigation squad redirected 17732 | -6/Hub_04(d) | Spotted Lightning 17734 | -6/Hub_04(d) | Spotted Lightning 17735 | -6/Hub_04(d) | Spotted Lightning 17736 | -6/Hub_04(d) | Network Hub disabled 17755 | -6/Hub_04(d) | Released all parts (9) 17757 | -6/Hub_04(d) | Core integrity fell below 50% 17758 | -6/Hub_04(d) | Incoming investigation squad redirected 17778 | -6/Hub_04(d) | System corruption reached 10% 17784 | -6/Hub_04(d) | Lost 7 parts (1p3n1u2w) 17823 | -6/Hub_04(d) | Core integrity fell below 20% 17827 | -6/Hub_04(d) | Destroyed by H-61 Shepherd with Heavy Assault Cannon Last Messages --------------- 17758_ O-16 Technician: "IFF HANDSHAKE FAILED. SECURING TERMINAL." 17766_ Penetrated by EMDS Slug. 17767_ System corrupted: Matter fused (-9). 17777_ Triggered Shock Trap. 17777_ The floor emits a surge of raw power. 17777_ System corrupted (+1). 17784_ 6HE>JNWJOZS,H%JVDSB BB=